Workbook

Sheet 渠道营销预算
B1: 渠道市场营销预算
C2: 费率 | D2: 第 1 个月 | E2: 第 2 个月 | F2: 第 3 个月 | G2: 第 4 个月 | H2: 第 5 个月 | I2: 第 6 个月 | J2: 第 7 个月 | K2: 第 8 个月 | L2: 第 9 个月 | M2: 第 10 个月 | N2: 第 11 个月 | O2: 第 12 个月 | Q2: 总计
B3: 预计销售总额 ¥(000) | D3: 750 | E3: 200 | F3: 500 | G3: 1500 | H3: 1200 | I3: 1500 | J3: 1500 | K3: 1800 | L3: 2000 | M3: 2000 | N3: 2000 | O3: 2000 | Q3: =SUM(D3:O3) -> 16950
B4: 个人（占销售总额的百分比） | D4: =D9+D28+D35+D41 -> 1.1 | E4: 1.1 | F4: 1.1 | G4: 1.1 | H4: 1.1 | I4: 1.1 | J4: 1.1 | K4: 1.1 | L4: 0.85 | M4: 0.85 | N4: 0.85 | O4: 0.85
B5: 人力资源 - 人数 | C5: 5 | D5: =+$C$5 -> 5 | E5: 5 | F5: 5 | G5: 5 | H5: 5 | I5: 5 | J5: 5 | K5: 5 | L5: 5 | M5: 5 | N5: 5 | O5: 5
B6: 人力资源 - 成本 | D6: =$C$5*D5 -> 25 | E6: 25 | F6: 25 | G6: 25 | H6: 25 | I6: 25 | J6: 25 | K6: 25 | L6: 25 | M6: 25 | N6: 25 | O6: 25 | Q6: =SUM(渠道营销预算!$D6:$O6) -> 300
B7: 佣金 | C7: 0.001 | D7: =D3*$C$7 -> 0.75 | E7: 0.2 | F7: 0.5 | G7: 1.5 | H7: 1.2 | I7: 1.5 | J7: 1.5 | K7: 1.8 | L7: 2 | M7: 2 | N7: 2 | O7: 2 | Q7: =SUM(渠道营销预算!$D7:$O7) -> 16.95
B8: 人员总额 ¥(000) | D8: =SUM(D6:D7) -> 25.75 | E8: 25.2 | F8: 25.5 | G8: 26.5 | H8: 26.2 | I8: 26.5 | J8: 26.5 | K8: 26.8 | L8: 27 | M8: 27 | N8: 27 | O8: 27 | Q8: =SUM(渠道营销预算!$D8:$O8) -> 316.95
B9: 直接营销（占销售总额的百分比） | D9: 1 | E9: 1 | F9: 0.75 | G9: 0.4 | H9: 0.33 | I9: 0.25 | J9: 0.2 | K9: 0.1 | L9: 0.05 | M9: 0.05 | N9: 0.05 | O9: 0.05
B10: 电话营销（占直接销售的百分比） | D10: 1 | E10: 0.5 | F10: 0.5 | G10: 0.5 | H10: 0.5 | I10: 0.5 | J10: 0.5 | K10: 0.5 | L10: 0.5 | M10: 0.5 | N10: 0.5 | O10: 0.5
B11: 人力资源 - 人数 | C11: 3 | D11: =$C$11*D10 -> 3 | E11: 1.5 | F11: 1.5 | G11: 1.5 | H11: 1.5 | I11: 1.5 | J11: 1.5 | K11: 1.5 | L11: 1.5 | M11: 1.5 | N11: 1.5 | O11: 1.5 | Q11: =SUM(渠道营销预算!$D11:$O11) -> 19.5
B12: 基础设施支持 | D12: 25 | E12: 10 | F12: 25 | G12: 10 | H12: 25 | I12: 10 | J12: 25 | K12: 10 | L12: 25 | M12: 10 | N12: 25 | O12: 10 | Q12: =SUM(渠道营销预算!$D12:$O12) -> 210
B13: 佣金 | C13: 0.001 | D13: =$C$13*D3*D9*D10 -> 0.75 | E13: 0.1 | F13: 0.1875 | G13: 0.3 | H13: 0.198 | I13: 0.1875 | J13: 0.15 | K13: 0.09 | L13: 0.05 | M13: 0.05 | N13: 0.05 | O13: 0.05 | Q13: =SUM(渠道营销预算!$D13:$O13) -> 2.163
B14: 培训 | D14: 25 | E14: 10 | F14: 25 | G14: 10 | H14: 25 | I14: 10 | J14: 25 | K14: 10 | L14: 25 | M14: 10 | N14: 25 | O14: 10 | Q14: =SUM(渠道营销预算!$D14:$O14) -> 210
B15: 电话营销总额 ¥(000) | D15: =SUM(D11:D14) -> 53.75 | E15: 21.6 | F15: 51.6875 | G15: 21.8 | H15: 51.698 | I15: 21.6875 | J15: 51.65 | K15: 21.59 | L15: 51.55 | M15: 21.55 | N15: 51.55 | O15: 21.55 | Q15: =SUM(渠道营销预算!$D15:$O15) -> 441.663
B16: 网络营销（占直接销售的百分比） | D16: 0.25 | E16: 0.25 | F16: 0.25 | G16: 0.25 | H16: 0.25 | I16: 0.25 | J16: 0.25 | K16: 0.25 | L16: 0.25 | M16: 0.25 | N16: 0.25 | O16: 0.25
B17: 人力资源 - 人数 | C17: 1 | D17: =$C$17*D16 -> 0.25 | E17: 0.25 | F17: 0.25 | G17: 0.25 | H17: 0.25 | I17: 0.25 | J17: 0.25 | K17: 0.25 | L17: 0.25 | M17: 0.25 | N17: 0.25 | O17: 0.25 | Q17: =SUM(渠道营销预算!$D17:$O17) -> 3
B18: 网站开发（一次性成本） | D18: 500 | Q18: =SUM(渠道营销预算!$D18:$O18) -> 500
B19: 托管 | D19: 10 | E19: 10 | F19: 10 | G19: 10 | H19: 10 | I19: 10 | J19: 10 | K19: 10 | L19: 10 | M19: 10 | N19: 10 | O19: 10 | Q19: =SUM(渠道营销预算!$D19:$O19) -> 120
B20: 支持和维护 | D20: 25 | N20: 25 | Q20: =SUM(渠道营销预算!$D20:$O20) -> 50
B21: 网络营销总额 ¥(000) | D21: =SUM(D17:D20) -> 535.25 | E21: =SUM(E17:E20) -> 10.25 | F21: 10.25 | G21: 10.25 | H21: 10.25 | I21: 10.25 | J21: 10.25 | K21: 10.25 | L21: 10.25 | M21: 10.25 | N21: 35.25 | O21: 10.25 | Q21: =SUM(渠道营销预算!$D21:$O21) -> 673
B22: 直接邮件（占直接销售的百分比）
B23: 人力资源 - 成本 | Q23: =SUM(渠道营销预算!$D23:$O23) -> 0
B24: 材料 | D24: 1000 | E24: 1000 | F24: 1000 | G24: 1000 | H24: 1000 | I24: 1000 | J24: 1000 | K24: 1000 | L24: 1000 | M24: 1000 | N24: 1000 | O24: 1000 | Q24: =SUM(渠道营销预算!$D24:$O24) -> 12000
B25: 邮资 | D25: 250 | E25: 250 | F25: 250 | G25: 250 | H25: 250 | I25: 250 | J25: 250 | K25: 250 | L25: 250 | M25: 250 | N25: 250 | O25: 250 | Q25: =SUM(渠道营销预算!$D25:$O25) -> 3000
B26: 直接邮件总额 ¥(000) | D26: =SUM(D23:D25) -> 1250 | E26: =SUM(E23:E25) -> 1250 | F26: 1250 | G26: 1250 | H26: 1250 | I26: 1250 | J26: 1250 | K26: 1250 | L26: 1250 | M26: 1250 | N26: 1250 | O26: 1250 | Q26: 15000
B27: 直接营销总额 ¥(000) | D27: =SUM(D15,D21,D26) -> 1839 | E27: 1281.85 | F27: 1311.9375 | G27: 1282.05 | H27: 1311.948 | I27: 1281.9375 | J27: 1311.9 | K27: 1281.84 | L27: 1311.8 | M27: 1281.8 | N27: 1336.8 | O27: 1281.8 | Q27: =SUM(Q15,Q21,Q26) -> 16114.663
B28: 代理商/经纪人（占销售总额的百分比） | D28: 0.1 | E28: 0.1 | F28: 0.1 | G28: 0.1 | H28: 0.1 | I28: 0.1 | J28: 0.1 | K28: 0.1 | L28: 0.1 | M28: 0.1 | N28: 0.1 | O28: 0.1
B29: 通信 | D29: 50 | E29: 50 | F29: 50 | G29: 50 | H29: 50 | I29: 50 | J29: 50 | K29: 50 | L29: 50 | M29: 50 | N29: 50 | O29: 50 | Q29: =SUM(渠道营销预算!$D29:$O29) -> 600
B30: 培训 | D30: 250 | E30: 250 | F30: 250 | G30: 250 | H30: 250 | I30: 250 | J30: 250 | K30: 250 | L30: 250 | M30: 250 | N30: 250 | O30: 250 | Q30: =SUM(渠道营销预算!$D30:$O30) -> 3000
B31: 促销 | D31: 600 | E31: 600 | F31: 600 | G31: 600 | H31: 600 | I31: 600 | J31: 600 | K31: 600 | L31: 600 | M31: 600 | N31: 600 | O31: 600 | Q31: =SUM(渠道营销预算!$D31:$O31) -> 7200
B32: 折扣 | C32: 0.1 | D32: =D3*D28*$C$32 -> 7.5 | E32: 2 | F32: 5 | G32: 15 | H32: 12 | I32: 15 | J32: 15 | K32: 18 | L32: 20 | M32: 20 | N32: 20 | O32: 20 | Q32: =SUM(渠道营销预算!$D32:$O32) -> 169.5
B33: 佣金（占代理商销售的百分比） | C33: 0.1 | D33: =D3*D28*$C$33 -> 7.5 | E33: 2 | F33: 5 | G33: 15 | H33: 12 | I33: 15 | J33: 15 | K33: 18 | L33: 20 | M33: 20 | N33: 20 | O33: 20 | Q33: =SUM(渠道营销预算!$D33:$O33) -> 169.5
B34: 代理商/经纪人总额 ¥(000) | D34: =SUM(D29:D33) -> 915 | E34: =SUM(E29:E33) -> 904 | F34: 910 | G34: 930 | H34: 924 | I34: 930 | J34: 930 | K34: 936 | L34: 940 | M34: 940 | N34: 940 | O34: 940 | Q34: 11139
B35: 分销商（占销售总额的百分比） | D35: 0 | E35: 0 | F35: 0 | G35: 0 | H35: 0 | I35: 0.15 | J35: 0.2 | K35: 0.4 | L35: 0.4 | M35: 0.4 | N35: 0.4 | O35: 0.4
B36: 通信 | D36: 50 | E36: 50 | F36: 50 | G36: 50 | H36: 50 | I36: 50 | J36: 50 | K36: 50 | L36: 50 | M36: 50 | N36: 50 | O36: 50 | Q36: =SUM(渠道营销预算!$D36:$O36) -> 600
B37: 培训 | D37: 250 | E37: 250 | F37: 250 | G37: 250 | H37: 250 | I37: 250 | J37: 250 | K37: 250 | L37: 250 | M37: 250 | N37: 250 | O37: 250 | Q37: =SUM(渠道营销预算!$D37:$O37) -> 3000
B38: 促销 | D38: 600 | E38: 600 | F38: 600 | G38: 600 | H38: 600 | I38: 600 | J38: 600 | K38: 600 | L38: 600 | M38: 600 | N38: 600 | O38: 600 | Q38: =SUM(渠道营销预算!$D38:$O38) -> 7200
B39: 佣金/折扣（占分销商销售的百分比） | C39: 0.15 | D39: =D3*D35*$C$39 -> 0 | E39: 0 | F39: 0 | G39: 0 | H39: 0 | I39: 33.75 | J39: 45 | K39: 108 | L39: 120 | M39: 120 | N39: 120 | O39: 120 | Q39: =SUM(渠道营销预算!$D39:$O39) -> 666.75
B40: 分销商总额 ¥(000) | D40: =SUM(D36:D39) -> 900 | E40: 900 | F40: 900 | G40: 900 | H40: 900 | I40: 933.75 | J40: 945 | K40: 1008 | L40: 1020 | M40: 1020 | N40: 1020 | O40: 1020 | Q40: 11466.75
B41: 零售商（占销售总额的百分比） | D41: 0 | E41: 0 | F41: 0.25 | G41: 0.6 | H41: 0.67 | I41: 0.6 | J41: 0.6 | K41: 0.5 | L41: 0.3 | M41: 0.3 | N41: 0.3 | O41: 0.3
B42: 通信 | D42: 50 | E42: 50 | F42: 50 | G42: 50 | H42: 50 | I42: 50 | J42: 50 | K42: 50 | L42: 50 | M42: 50 | N42: 50 | O42: 50 | Q42: =SUM(渠道营销预算!$D42:$O42) -> 600
B43: 培训 | D43: 250 | E43: 250 | F43: 250 | G43: 250 | H43: 250 | I43: 250 | J43: 250 | K43: 250 | L43: 250 | M43: 250 | N43: 250 | O43: 250 | Q43: =SUM(渠道营销预算!$D43:$O43) -> 3000
B44: 促销 | D44: 600 | E44: 600 | F44: 600 | G44: 600 | H44: 600 | I44: 600 | J44: 600 | K44: 600 | L44: 600 | M44: 600 | N44: 600 | O44: 600 | Q44: =SUM(渠道营销预算!$D44:$O44) -> 7200
B45: 佣金/折扣（占零售的百分比） | C45: 0.1 | D45: =D3*D41*$C$45 -> 0 | E45: 0 | F45: 12.5 | G45: 90 | H45: 80.4 | I45: 90 | J45: 90 | K45: 90 | L45: 60 | M45: 60 | N45: 60 | O45: 60 | Q45: =SUM(渠道营销预算!$D45:$O45) -> 692.9
B46: 零售商总额 ¥(000) | D46: =SUM(D42:D45) -> 900 | E46: 900 | F46: 912.5 | G46: 990 | H46: 980.4 | I46: 990 | J46: 990 | K46: 990 | L46: 960 | M46: 960 | N46: 960 | O46: 960 | Q46: 11492.9
B47: 客户获取和保留 (CAR)
B48: 人力资源 | D48: 50 | E48: 50 | F48: 50 | G48: 50 | H48: 50 | I48: 50 | J48: 50 | K48: 50 | L48: 50 | M48: 50 | N48: 50 | O48: 50 | Q48: =SUM(渠道营销预算!$D48:$O48) -> 600
B49: 通信 | D49: 250 | E49: 250 | F49: 250 | G49: 250 | H49: 250 | I49: 250 | J49: 250 | K49: 250 | L49: 250 | M49: 250 | N49: 250 | O49: 250 | Q49: =SUM(渠道营销预算!$D49:$O49) -> 3000
B50: 促销/礼券 | D50: 600 | E50: 600 | F50: 600 | G50: 600 | H50: 600 | I50: 600 | J50: 600 | K50: 600 | L50: 600 | M50: 600 | N50: 600 | O50: 600 | Q50: =SUM(渠道营销预算!$D50:$O50) -> 7200
B51: CAR 总额 ¥(000) | D51: =SUM(D48:D50) -> 900 | E51: 900 | F51: 900 | G51: 900 | H51: 900 | I51: 900 | J51: 900 | K51: 900 | L51: 900 | M51: 900 | N51: 900 | O51: 900 | Q51: 10800
B52: 其他费用
B53: 旅行 | D53: 50 | E53: 50 | F53: 50 | G53: 50 | H53: 50 | I53: 50 | J53: 50 | K53: 50 | L53: 50 | M53: 50 | N53: 50 | O53: 50 | Q53: =SUM(渠道营销预算!$D53:$O53) -> 600
B54: 基础设施（计算机、电话等） | D54: 250 | E54: 250 | F54: 250 | G54: 250 | H54: 250 | I54: 250 | J54: 250 | K54: 250 | L54: 250 | M54: 250 | N54: 250 | O54: 250 | Q54: =SUM(渠道营销预算!$D54:$O54) -> 3000
B55: 渠道支持 | D55: 600 | E55: 600 | F55: 600 | G55: 600 | H55: 600 | I55: 600 | J55: 600 | K55: 600 | L55: 600 | M55: 600 | N55: 600 | O55: 600 | Q55: =SUM(渠道营销预算!$D55:$O55) -> 7200
B56: 其他费用总额 ¥(000) | D56: =SUM(D53:D55) -> 900 | E56: 900 | F56: 900 | G56: 900 | H56: 900 | I56: 900 | J56: 900 | K56: 900 | L56: 900 | M56: 900 | N56: 900 | O56: 900 | Q56: 10800
B58: 营销预算总额： | D58: =SUM(D8,D27,D34,D40,D46,D51,D56) -> 6379.75 | E58: 5811.05 | F58: 5859.9375 | G58: 5928.55 | H58: 5942.548 | I58: 5962.1875 | J58: 6003.4 | K58: 6042.64 | L58: 6058.8 | M58: 6028.8 | N58: 6083.8 | O58: 6028.8 | Q58: =SUM(Q8,Q27,Q34,Q40,Q46,Q51,Q56) -> 72130.263
